fUSD/lending_fUSD_20240204
["ID","MTS","AMOUNT","RATE_DAILY","PERIOD"]
[313270315,1707063043994,-180.32653704,0.00039947,7]
[313270316,1707063044005,-173.53000068,0.0003998,5]
[313270318,1707063044014,-1000.0,0.00039999,30]
[313270321,1707063044025,-2279.09360945,0.0004,4]
[313270322,1707063044035,-5487.50915205,0.0004,4]
[313270324,1707063044045,-1088.67175974,0.0004,4]
[313270326,1707063044054,-571.36387681,0.0004,4]
[313270328,1707063044063,-54488.91732862,0.0004,4]
[313270330,1707063044073,-83704.56321334,0.0004,4]
[313270332,1707063044082,-2689.55318047,0.0004,4]
[313270334,1707063044092,-155.0,0.0004,2]
[313270336,1707063044101,-400.00050884,0.0004,120]
[313270338,1707063044111,-22117.68647422,0.0004,4]
[313270340,1707063044120,-156.14835388,0.0004,4]
[313270343,1707063044129,-180.8638013,0.0004,2]
[313270344,1707063044138,-1500.0,0.0004,4]
[313270347,1707063044148,-1086.91516621,0.0004,10]
[313270348,1707063044157,-5000.0,0.0004,30]
[313270351,1707063044167,-1238.2797381,0.0004,30]
[313270353,1707063044176,-3200.0,0.0004,4]
[313270355,1707063044187,-67651.19817989,0.0004,15]
[313270356,1707063044196,-9132.33984482,0.0004,7]
[313270359,1707063044206,-255.0,0.0004,12]
[313270360,1707063044215,-255.0,0.0004,12]
[313270362,1707063044224,-255.0,0.0004,12]
[313270364,1707063044238,-347.7538178,0.0004,2]
[313270366,1707063044247,-308.0,0.0004,29]
[313270368,1707063044257,-3955.0,0.0004,30]
[313270371,1707063044266,-2137.79383862,0.0004,30]
[313270373,1707063044277,-726.0,0.0004,30]
[313270375,1707063044287,-732.32099382,0.0004,30]
[313270377,1707063044296,-255.0,0.0004,12]
[313270378,1707063044305,-255.0,0.0004,12]
[313270380,1707063044315,-2168.57829593,0.0004,30]
[313270383,1707063044325,-200.0,0.00040031,22]
[313270385,1707063044335,-153.29405713,0.00040193,30]
[313270387,1707063044344,-1545.49745465,0.00040254,5]
[313270389,1707063044353,-260.62874586,0.000403,4]
[313270391,1707063044363,-151.55964903,0.00040321,7]
[313270393,1707063044372,-396.26,0.00040373,2]
[313270395,1707063044381,-150.0,0.00040375,2]
[313270397,1707063044391,-875.45,0.000404,4]
[313270398,1707063044400,-875.45,0.000404,4]
[313270401,1707063044409,-875.45,0.000404,4]
[313270403,1707063044419,-875.45,0.000404,4]
[313270405,1707063044429,-875.45,0.000404,4]
[313270407,1707063044439,-875.45,0.000404,4]
[313270409,1707063044448,-875.45,0.000404,4]
[313270411,1707063044458,-875.45,0.000404,4]
[313270413,1707063044467,-875.45,0.000404,4]
[313270415,1707063044477,-875.45,0.000404,4]
[313270417,1707063044488,-875.45,0.000404,4]
[313270419,1707063044497,-875.45,0.000404,4]
[313270421,1707063044507,-875.45,0.000404,4]
[313270423,1707063044516,-875.45,0.000404,4]
[313270425,1707063044525,-875.45,0.000404,4]
[313270427,1707063044534,-1364.75404586,0.00040477,30]
[313270429,1707063044544,-308.0,0.000405,30]
[313270431,1707063044553,-150.0,0.00040519,2]
[313270433,1707063044562,-1364.75404586,0.00040557,30]
[313270435,1707063044571,-1000.0,0.00040733,2]
[313270437,1707063044580,-1364.75404586,0.00040739,30]
[313270439,1707063044590,-156.08841774,0.00040758,30]
[313270441,1707063044599,-1500.0,0.000408,37]
[313270443,1707063044608,-10000.0,0.00040888,2]
[313270445,1707063044617,-1364.75404586,0.00040932,30]
[313270447,1707063044626,-75000.0,0.00040986,15]
[313270449,1707063044635,-800.0,0.00041,2]
[313270451,1707063044644,-347.7538178,0.00041,2]
[313270453,1707063044653,-308.0,0.00041,30]
[313270455,1707063044662,-3954.0,0.00041,30]
[313270457,1707063044672,-2136.0,0.00041,30]
[313270459,1707063044681,-726.0,0.00041,30]
[313270461,1707063044691,-732.0,0.00041,30]
[313270463,1707063044701,-2168.0,0.00041,30]
[313270465,1707063044710,-151.55964903,0.00041019,10]
[313270467,1707063044719,-206.95528199,0.00041058,13]
[313270469,1707063044728,-206.95528197,0.00041058,13]
[313270471,1707063044737,-404.09077225,0.00041096,7]
[313270473,1707063044746,-670.59031715,0.00041096,7]
[313270475,1707063044755,-151.0,0.00041096,14]
[313270477,1707063044764,-151.0,0.00041096,7]
[313270479,1707063044773,-238.369451,0.00041096,7]
[313270481,1707063044783,-151.0,0.00041096,14]
[313270483,1707063044792,-459.075409,0.00041096,14]
[313270485,1707063044802,-459.075409,0.00041096,14]
[313270487,1707063044814,-151.0,0.00041096,14]
[313270489,1707063044823,-151.0,0.00041096,14]
[313270491,1707063044833,-156.739495,0.00041096,14]
[313270493,1707063044843,-151.0,0.00041096,14]
[313270495,1707063044852,-160.602992,0.00041096,14]
[313270497,1707063044862,-151.0,0.00041096,14]
[313270499,1707063044871,-151.0,0.00041096,14]
[313270501,1707063044880,-244.773772,0.00041096,14]
[313270503,1707063044889,-156.875747,0.00041096,14]
[313270505,1707063044898,-151.0,0.00041096,14]
[313270507,1707063044907,-151.0,0.00041096,14]
[313270509,1707063044916,-151.0,0.00041096,14]
[313270511,1707063044925,-153.011217,0.00041096,14]
[313270513,1707063044933,-152.51,0.00041096,2]
[313270515,1707063044943,-151.0,0.00041096,14]
[313270517,1707063044952,-154.845007,0.00041096,14]
[313270519,1707063044961,-151.0,0.00041096,14]
[313270521,1707063044972,-156.2602,0.00041096,14]
[313270523,1707063044981,-339.237738,0.00041096,14]
[313270525,1707063044990,-339.237738,0.00041096,14]
[313270527,1707063044999,-339.237738,0.00041096,14]
[313270529,1707063045008,-339.237738,0.00041096,14]
[313270531,1707063045017,-151.0,0.00041096,14]
[313270533,1707063045027,-267.834084,0.00041096,14]
[313270535,1707063045036,-151.0,0.00041096,14]
[313270537,1707063045045,-151.0,0.00041096,14]
[313270539,1707063045054,-151.0,0.00041096,14]
[313270541,1707063045063,-160.716407,0.00041096,14]
[313270543,1707063045072,-151.0,0.00041096,14]
[313270545,1707063045082,-156.535725,0.00041096,14]
[313270547,1707063045091,-151.0,0.00041096,14]
[313270549,1707063045100,-151.0,0.00041096,14]
[313270551,1707063045109,-200.669413,0.00041096,14]
[313270553,1707063045118,-151.0,0.00041096,14]
[313270555,1707063045128,-155.461093,0.00041096,14]
[313270557,1707063045138,-183.0,0.00041096,2]
[313270559,1707063045148,-151.0,0.00041096,14]
[313270561,1707063045157,-151.0,0.00041096,14]
[313270563,1707063045166,-151.0,0.00041096,14]
[313270565,1707063045176,-177.912012,0.00041096,14]
[313270567,1707063045185,-151.0,0.00041096,14]
[313270569,1707063045194,-151.0,0.00041096,14]
[313270571,1707063045203,-151.0,0.00041096,14]
[313270573,1707063045212,-151.0,0.00041096,14]
[313270575,1707063045222,-151.0,0.00041096,14]
[313270577,1707063045234,-151.0,0.00041096,14]
[313270579,1707063045244,-151.0,0.00041096,14]
[313270581,1707063045252,-156.706495,0.00041096,14]
[313270583,1707063045261,-151.0,0.00041096,14]
[313270585,1707063045271,-151.0,0.00041096,14]
[313270587,1707063045280,-151.0,0.00041096,14]
[313270589,1707063045289,-151.0,0.00041096,14]
[313270591,1707063045299,-151.0,0.00041096,14]
[313270593,1707063045308,-154.956653,0.00041096,14]
[313270595,1707063045319,-151.0,0.00041096,14]
[313270598,1707063045329,-151.0,0.00041096,14]
[313270600,1707063045338,-151.0,0.00041096,14]
[313270602,1707063045347,-151.0,0.00041096,14]
[313270603,1707063045357,-4000.0,0.00041096,30]
[313270604,1707063045365,-151.0,0.00041096,14]
[313270605,1707063045374,-250.857712,0.00041096,14]
[313270606,1707063045383,-151.0,0.00041096,14]
[313270607,1707063045391,-155.071997,0.00041096,14]
[313270608,1707063045401,-151.0,0.00041096,14]
[313270609,1707063045410,-151.0,0.00041096,14]
[313270610,1707063045419,-150.0,0.00041096,2]
[313270612,1707063045427,-213.36,0.000411,7]
[313270614,1707063045436,-26938.73,0.000411,7]
[313270616,1707063045445,-14043.86,0.000411,7]
[313270618,1707063045453,-9110.8,0.000411,7]
[313270620,1707063045463,-152.791756,0.000411,14]
[313270622,1707063045472,-3316.0,0.000411,2]
[313270624,1707063045482,-151.0,0.0004113,2]
[313270626,1707063045490,-200.0,0.00041141,24]
[313270628,1707063045500,-1500.0,0.000413,37]
[313270630,1707063045509,-153.29405713,0.00041352,30]
[313270632,1707063045518,-150.0,0.00041384,2]
[313270634,1707063045527,-151.94956887,0.00041443,30]
[313270636,1707063045536,-308.0,0.000415,31]
[313270638,1707063045545,-184.44407164,0.00041522,4]
[313270639,1707063045554,-156.80178581,0.00041566,30]
[313270642,1707063045563,-151.55964903,0.00041716,13]
[313270643,1707063045572,-1500.0,0.000418,37]
[313270646,1707063045582,-174.18685595,0.00041811,30]
[313270647,1707063045591,-302.0,0.00041821,4]
[313270649,1707063045600,-1545.49745465,0.00041833,5]
[313270652,1707063045609,-192.59562084,0.000419,30]
[313270654,1707063045619,-26938.73,0.000419,7]
[313270655,1707063045628,-14043.86,0.000419,7]
[313270657,1707063045637,-9110.8,0.000419,7]
[313270659,1707063045647,-151.73815935,0.00041975,30]
[313270661,1707063045656,-1625.0,0.0004199,2]
[313270663,1707063045665,-1468.0,0.0004199,2]
[313270665,1707063045674,-2700.41189564,0.00042,30]
[313270667,1707063045683,-746.0,0.00042,120]
[313270669,1707063045693,-347.7538178,0.00042,2]
[313270671,1707063045702,-308.0,0.00042,31]
[313270673,1707063045711,-200.0,0.00042,2]
[313270687,1707063045721,-403.45721989,0.00042058,90]
[313270689,1707063045833,-5809.20934599,0.00042058,120]
[313270691,1707063045843,-576.13848068,0.00042058,30]
[313270693,1707063045852,-223.4085189,0.00042058,30]
[313270695,1707063045861,-162.89568986,0.00042058,10]
[313270697,1707063045870,-151.09649739,0.00042058,120]
[313270699,1707063045879,-151.89334976,0.00042058,120]
[313270701,1707063045888,-4807.45586466,0.00042058,2]
[313270703,1707063045897,-173.4075445,0.00042058,2]
[313270705,1707063045907,-6097.52577735,0.00042058,2]
[313270707,1707063045916,-1002.79942148,0.00042058,2]
[313270709,1707063045925,-161.17537726,0.00042058,2]
[313270711,1707063045934,-8860.71348793,0.00042058,2]
[313270713,1707063045943,-1258.28830115,0.00042058,2]
[313270715,1707063045952,-4743.825361,0.00042058,2]
[313270718,1707063045961,-6749.37583207,0.00042058,2]
[313270719,1707063045970,-4405.37119893,0.00042058,2]
[313270721,1707063045979,-214.07401012,0.00042058,120]
[313270724,1707063045988,-369.32444214,0.00042058,120]
[313270726,1707063045998,-500.0,0.00042058,120]
[313270728,1707063046007,-2531.64087506,0.00042058,2]
[313270730,1707063046017,-192.22613689,0.00042058,120]
[313270732,1707063046026,-227.55097666,0.00042058,120]
[313270733,1707063046035,-20032.38814109,0.00042058,2]
[313270736,1707063046044,-390.20316538,0.00042058,7]
[313270737,1707063046053,-3098.70989682,0.00042058,2]
[313270739,1707063046062,-494.06987051,0.00042058,120]
[313270741,1707063046071,-1413.316762,0.00042058,30]
[313270743,1707063046080,-500.0,0.00042058,30]
[313270745,1707063046089,-832.673529,0.00042058,30]
[313270747,1707063046098,-399.802059,0.00042058,30]
[313270749,1707063046108,-237.81965408,0.00042058,30]
[313270752,1707063046117,-213.36,0.000421,7]
[313270755,1707063046126,-187.0,0.000421,7]
[313270758,1707063046135,-1364.75404586,0.00042201,30]
[313270762,1707063046145,-200.0,0.0004225,26]
[313270765,1707063046153,-150.0,0.00042394,2]
[313270768,1707063046163,-151.55964903,0.00042413,15]
[313270770,1707063046171,-755.4247957,0.000425,10]
[313270771,1707063046180,-308.0,0.000425,32]
[313270775,1707063046190,-604.0,0.00042524,7]
[313270777,1707063046199,-5824.61064327,0.000426,120]
[313270780,1707063046208,-26938.73,0.000426,7]
[313270783,1707063046217,-14043.86,0.000426,7]
[313270787,1707063046226,-9110.8,0.000426,7]
[313270789,1707063046239,-396.26,0.00042637,2]
[313270792,1707063046248,-153.29405713,0.00042714,30]
[313270795,1707063046257,-1364.75404586,0.00042768,30]
[313270798,1707063046266,-723.03575259,0.00042888,32]
[313270801,1707063046277,-154.55,0.000429,4]
[313270805,1707063046287,-154.55,0.000429,4]
[313270807,1707063046296,-154.55,0.000429,4]
[313270812,1707063046305,-154.55,0.000429,4]
[313270814,1707063046316,-187.0,0.000429,7]
[313270819,1707063046326,-500.0,0.00043,60]
[313270822,1707063046335,-574.51429211,0.00043,30]
[313270826,1707063046344,-347.7538178,0.00043,2]
[313270830,1707063046354,-308.0,0.00043,32]
[313270836,1707063046362,-153.29405713,0.00043073,30]
[313270839,1707063046372,-213.36,0.000431,7]
[313270844,1707063046381,-151.55964903,0.00043111,18]
[313270846,1707063046391,-394.69875275,0.000433,30]
[313270849,1707063046399,-26938.73,0.000433,7]
[313270852,1707063046408,-14043.86,0.000433,7]
[313270855,1707063046418,-9110.8,0.000433,7]
[313270858,1707063046427,-1000.0,0.000433,2]
[313270861,1707063046436,-792.0,0.000433,2]
[313270864,1707063046445,-485.37814941,0.000433,2]
[313270867,1707063046454,-200.0,0.0004336,28]
[313270870,1707063046463,-1000.0,0.000434,11]
[313270873,1707063046473,-154.98375468,0.00043401,30]
[313270875,1707063046483,-150.0,0.00043403,2]
[313270877,1707063046492,-1545.49745465,0.00043412,5]
[313270879,1707063046501,-2000.0,0.00043463,2]
[313270882,1707063046510,-2000.0,0.00043463,2]
[313270885,1707063046519,-308.0,0.000435,33]
[313270888,1707063046528,-174.18685598,0.00043591,30]
[313270891,1707063046538,-1208.0,0.000436,30]
[313270895,1707063046547,-201.0,0.0004369,2]
[313270897,1707063046556,-182.0,0.0004369,2]
[313270901,1707063046566,-187.0,0.000437,7]
[313270905,1707063046575,-283.388035,0.000437,15]
[313270907,1707063046585,-811.32116266,0.000438,30]
[313270909,1707063046594,-8000.0,0.000438,2]
[313270914,1707063046604,-875.45,0.000438,4]
[313270917,1707063046613,-875.45,0.000438,4]
[313270919,1707063046623,-875.45,0.000438,4]
[313270921,1707063046632,-875.45,0.000438,4]
[313270923,1707063046641,-875.45,0.000438,4]
[313270924,1707063046651,-875.45,0.000438,4]
[313270927,1707063046660,-875.45,0.000438,4]
[313270929,1707063046670,-875.45,0.000438,4]
[313270931,1707063046679,-875.45,0.000438,4]
[313270933,1707063046689,-875.45,0.000438,4]
[313270935,1707063046699,-875.45,0.000438,4]
[313270937,1707063046708,-875.45,0.000438,4]
[313270939,1707063046717,-875.45,0.000438,4]
[313270941,1707063046726,-875.45,0.000438,4]
[313270943,1707063046736,-875.45,0.000438,4]
[313270945,1707063046745,-875.45,0.000438,4]
[313270947,1707063046754,-875.45,0.000438,4]
[313270949,1707063046762,-151.55964903,0.00043808,21]
[313270951,1707063046772,-3085.66395035,0.00043835,120]
[313270953,1707063046780,-2055.4,0.00043836,15]
[313270955,1707063046790,-3935.71528253,0.000439,30]
[313270957,1707063046798,-160.99975112,0.00043976,30]
[313270959,1707063046807,-173.95094416,0.00044,120]
[313270961,1707063046816,-225.43608391,0.00044,30]
[313270963,1707063046824,-997.00685585,0.00044,30]
[313270966,1707063046835,-347.7538178,0.00044,2]
[313270968,1707063046845,-308.0,0.00044,33]
[313270970,1707063046853,-200.0,0.000441,2]
[313270972,1707063046863,-213.36,0.000442,7]
[313270973,1707063046872,-26938.73,0.000442,7]
[313270976,1707063046881,-9110.8,0.000442,7]
[313270977,1707063046890,-14043.86,0.000442,7]
[313270980,1707063046899,-150.0,0.000442,15]
[313270982,1707063046909,-150.0,0.00044384,30]
[313270984,1707063046918,-150.0,0.00044384,30]
[313270986,1707063046926,-150.0,0.00044384,30]
[313270988,1707063046936,-150.0,0.00044384,30]
[313270990,1707063046945,-150.0,0.00044384,30]
[313270991,1707063046954,-150.0,0.00044384,30]
[313270992,1707063046962,-150.0,0.00044384,30]
[313270993,1707063046970,-150.0,0.00044384,30]
[313270994,1707063046979,-150.0,0.00044412,2]
[313270995,1707063046988,-1364.75404586,0.00044453,30]
[313270996,1707063046997,-200.0,0.00044469,31]
[313270997,1707063047006,-475.0,0.0004449,2]
[313270998,1707063047014,-308.0,0.000445,34]
[313271000,1707063047024,-187.0,0.000445,7]
[313271002,1707063047033,-151.55964903,0.00044505,23]
[313271004,1707063047042,-156.80178581,0.00044572,30]
[313271006,1707063047052,-20912.0,0.0004459,2]
[313271008,1707063047061,-18880.0,0.0004459,2]
[313271010,1707063047071,-844413.31242689,0.000446,2]
[313271012,1707063047080,-150.0,0.000447,16]
[313271014,1707063047089,-398.18349642,0.0004475,30]
[313271016,1707063047098,-1364.75404586,0.00044894,30]
[313271018,1707063047107,-5453.53381323,0.000449,30]
[313271021,1707063047116,-459.075409,0.000449,14]
[313271022,1707063047126,-459.075409,0.000449,14]
[313271024,1707063047135,-24619.0,0.000449,30]
[313271026,1707063047144,-396.26,0.000449,2]
[313271028,1707063047153,-246.20658187,0.0004498,5]
[313271030,1707063047162,-5000.0,0.00044986,4]
[313271032,1707063047171,-1545.49745465,0.00044991,5]
[313271034,1707063047180,-302.64868085,0.00045,14]
[313271036,1707063047190,-292.82250194,0.00045,4]
[313271038,1707063047199,-4093.11834216,0.00045,20]
[313271040,1707063047208,-2000.0,0.00045,120]
[313271042,1707063047218,-2000.0,0.00045,120]
[313271045,1707063047228,-5148.36980219,0.00045,30]
[313271047,1707063047244,-849.74665875,0.00045,120]
[313271048,1707063047254,-1940766.92656195,0.00045,4]
[313271050,1707063047263,-2000.0,0.00045,120]
[313271053,1707063047273,-953.20880463,0.00045,30]
[313271054,1707063047283,-26163.41991867,0.00045,3]
[313271056,1707063047292,-4682.51432108,0.00045,17]
[313271059,1707063047301,-168.75556437,0.00045,10]
[313271061,1707063047311,-213.36,0.00045,7]
[313271063,1707063047322,-623.73728936,0.00045,30]
[313271065,1707063047332,-26938.73,0.00045,7]
[313271067,1707063047341,-9110.8,0.00045,7]
[313271069,1707063047350,-14043.86,0.00045,7]
[313271070,1707063047359,-161.110763,0.00045,14]
[313271073,1707063047369,-151.0,0.00045,7]
[313271074,1707063047378,-155.498396,0.00045,14]
[313271077,1707063047387,-459.075409,0.00045,14]
[313271078,1707063047396,-459.075409,0.00045,14]
[313271081,1707063047405,-151.0,0.00045,14]
[313271083,1707063047415,-308.0,0.00045,35]
[313271084,1707063047423,-339.237738,0.00045,14]
[313271086,1707063047432,-339.237738,0.00045,14]
[313271089,1707063047442,-151.0,0.00045,14]
[313271091,1707063047451,-151.0,0.00045,14]
[313271092,1707063047462,-151.0,0.00045,14]
[313271095,1707063047471,-151.0,0.00045,14]
[313271096,1707063047480,-151.0,0.00045,14]
[313271099,1707063047489,-151.0,0.00045,14]
[313271100,1707063047499,-151.0,0.00045,14]
[313271102,1707063047509,-151.0,0.00045,14]
[313271105,1707063047519,-151.0,0.00045,14]
[313271107,1707063047529,-155.957528,0.00045,14]
[313271109,1707063047538,-1364.75404586,0.00045007,30]
[313271111,1707063047547,-11718.81,0.00045014,3]
[313271113,1707063047556,-151.94956888,0.00045037,30]
[313271115,1707063047565,-155.15706483,0.00045119,30]
[313271117,1707063047574,-150.101,0.0004512,2]
[313271119,1707063047583,-150.101,0.0004512,2]
[313271121,1707063047592,-160.42387282,0.0004512,2]
[313271123,1707063047601,-687.0795,0.0004514,30]
[313271124,1707063047610,-284.0,0.0004519,2]
[313271126,1707063047620,-257.0,0.0004519,2]
[313271128,1707063047629,-3000.0,0.000452,2]
[313271130,1707063047640,-500.0,0.000452,2]
[313271132,1707063047652,-150.0,0.000452,16]
[313271135,1707063047662,-8000.0,0.000452,2]
[313271136,1707063047671,-151.55964903,0.00045203,26]
[313271139,1707063047680,-153.29405713,0.00045204,30]
[313271141,1707063047689,-187.0,0.000453,30]
[313271143,1707063047698,-150.0,0.0004537,30]
[313271144,1707063047707,-150.0,0.0004537,30]
[313271146,1707063047716,-150.0,0.00045422,2]
[313271148,1707063047726,-308.0,0.000455,35]
[313271151,1707063047735,-200.0,0.00045578,33]
[313271153,1707063047745,-154.98375468,0.0004564,30]
[313271154,1707063047755,-150.0,0.000457,17]
[313271157,1707063047765,-156.08841774,0.00045724,30]
[313271158,1707063047774,-1034.59075451,0.0004588,100]
[313271160,1707063047783,-152.51,0.0004589,2]
[313271162,1707063047792,-151.55964903,0.000459,29]
[313271164,1707063047801,-1364.75404586,0.00045941,30]
[313271166,1707063047811,-160.99975112,0.00045971,30]
[313271169,1707063047819,-184.41767461,0.0004598,7]
[313271171,1707063047829,-1312.47357393,0.00045989,2]
[313271172,1707063047839,-503.0,0.0004599,2]
[313271175,1707063047849,-454.0,0.0004599,2]
[313271177,1707063047858,-12000.01255191,0.00046,4]
[313271189,1707063047868,-1325066.59247776,0.00046,5]
[313271191,1707063047970,-500.0,0.00046,2]
[313271193,1707063047979,-26938.73,0.00046,7]
[313271195,1707063047989,-9110.8,0.00046,7]
[313271197,1707063047998,-14043.86,0.00046,7]
[313271199,1707063048007,-5776.24607552,0.00046,5]
[313271201,1707063048017,-2095.76,0.00046,30]
[313271203,1707063048026,-1000.0,0.00046,2]
[313271205,1707063048035,-308.0,0.00046,36]
[313271207,1707063048044,-156.08841774,0.00046019,30]
[313271209,1707063048053,-156.80178581,0.00046051,30]
[313271211,1707063048062,-18852.3484364,0.000461,2]
[313271213,1707063048071,-1364.7540461,0.00046115,30]
[313271215,1707063048079,-213.36,0.000462,7]
[313271217,1707063048088,-187.0,0.000462,30]
[313271219,1707063048098,-200.0,0.000462,2]
[313271221,1707063048107,-150.0,0.000462,17]
[313271223,1707063048116,-1312.47357393,0.00046222,2]
[313271225,1707063048125,-1328.11133558,0.00046239,2]
[313271227,1707063048135,-1000.0,0.000463,2]
[313271229,1707063048145,-152.19271474,0.00046318,30]
[313271231,1707063048154,-360.0,0.00046332,12]
[313271233,1707063048163,-150.0,0.00046356,30]
[313271235,1707063048172,-150.0,0.00046356,30]
[313271237,1707063048182,-2000.0,0.00046424,4]
[313271239,1707063048191,-150.0,0.00046431,2]
[313271241,1707063048200,-308.0,0.000465,36]
[313271243,1707063048210,-387.0640136,0.00046543,2]
[313271245,1707063048219,-1248.9951355,0.00046543,2]
[313271247,1707063048229,-666.0,0.00046554,2]
[313271249,1707063048243,-153.29405713,0.00046557,30]
[313271252,1707063048253,-984.49030789,0.00046562,2]
[313271254,1707063048262,-668.46820905,0.00046563,15]
[313271255,1707063048271,-646.63739048,0.00046563,4]
[313271258,1707063048282,-2000.0,0.00046565,7]
[313271260,1707063048292,-200.0,0.00046565,7]
[313271262,1707063048301,-2000.0,0.00046565,7]
[313271264,1707063048311,-1545.49745465,0.0004657,5]
[313271266,1707063048321,-5000.0,0.00046575,30]
[313271268,1707063048330,-536.3160345,0.00046575,31]
[313271270,1707063048339,-647.00947849,0.00046575,31]
[313271272,1707063048348,-523.04536286,0.00046575,31]
[313271274,1707063048357,-500.0,0.00046575,31]
[313271276,1707063048366,-538.88709604,0.00046575,31]
[313271277,1707063048376,-154.26883287,0.00046575,31]
[313271280,1707063048386,-315.49652691,0.00046575,31]
[313271281,1707063048395,-520.48264046,0.00046575,31]
[313271283,1707063048405,-327.56134791,0.00046575,31]
[313271285,1707063048414,-500.0,0.00046575,31]
[313271287,1707063048423,-500.0,0.00046575,7]
[313271290,1707063048433,-1000.0,0.00046575,7]
[313271291,1707063048443,-154.47194824,0.00046575,31]
[313271292,1707063048452,-502.28271544,0.00046575,31]
[313271293,1707063048461,-500.0,0.00046575,31]
[313271294,1707063048470,-500.0,0.00046575,31]
[313271295,1707063048479,-212.38314579,0.00046575,31]
[313271296,1707063048488,-500.0,0.00046575,31]
[313271297,1707063048497,-500.0,0.00046575,31]
[313271298,1707063048506,-500.0,0.00046575,31]
[313271300,1707063048515,-500.0,0.00046575,31]
[313271302,1707063048523,-500.0,0.00046575,31]
[313271304,1707063048532,-500.0,0.00046575,31]
[313271306,1707063048541,-500.0,0.00046575,31]
[313271308,1707063048551,-151.0,0.00046575,7]
[313271310,1707063048560,-500.0,0.00046575,31]
[313271312,1707063048570,-253.52116422,0.00046575,31]
[313271314,1707063048579,-542.28437597,0.00046575,31]
[313271316,1707063048588,-500.0,0.00046575,31]
[313271319,1707063048598,-500.0,0.00046575,31]
[313271320,1707063048607,-500.0,0.00046575,31]
[313271322,1707063048618,-432.18434822,0.00046575,31]
[313271325,1707063048628,-614.56059171,0.00046575,31]
[313271326,1707063048637,-155.5914355,0.00046575,31]
[313271328,1707063048646,-593.33511333,0.00046575,31]
[313271330,1707063048655,-500.0,0.00046575,31]
[313271332,1707063048664,-500.0,0.00046575,7]
[313271334,1707063048673,-198.99960683,0.00046575,31]
[313271337,1707063048683,-500.0,0.00046575,31]
[313271338,1707063048692,-315.40672098,0.00046575,31]
[313271340,1707063048701,-153.85307946,0.00046575,31]
[313271342,1707063048710,-186.04858029,0.00046575,31]
[313271344,1707063048721,-630.27,0.00046575,31]
[313271346,1707063048731,-500.0,0.00046575,31]
[313271348,1707063048740,-500.0,0.00046575,31]
[313271350,1707063048749,-459.075409,0.00046575,14]
[313271352,1707063048758,-459.075409,0.00046575,14]
[313271354,1707063048767,-580.81930399,0.00046575,31]
[313271356,1707063048777,-520.6852322,0.00046575,31]
[313271358,1707063048786,-243.71710679,0.00046575,31]
[313271360,1707063048795,-621.90072622,0.00046575,31]
[313271362,1707063048804,-611.57123104,0.00046575,31]
[313271364,1707063048814,-500.0,0.00046575,31]
[313271366,1707063048823,-500.0,0.00046575,31]
[313271368,1707063048832,-1000.0,0.00046575,120]
[313271370,1707063048844,-500.0,0.00046575,2]
[313271373,1707063048855,-500.0,0.00046575,31]
[313271375,1707063048864,-500.0,0.00046575,31]